bitfinex/quotes_SOLUSD_20250919
["timestamp","ask_amount","ask_price","bid_price","bid_amount"]
[1758280741241,10.4778807,241.44,241.43,38.68143251]
[1758280741558,14.61969647,241.44,241.43,38.68143251]
[1758280741776,9.7878807,241.44,241.43,40.60032817]
[1758280741973,9.7878807,241.44,241.43,58.3379095]
[1758280742362,9.7878807,241.44,241.43,59.0579095]
[1758280742672,9.7878807,241.44,241.43,58.3379095]
[1758280743552,10.4778807,241.44,241.43,58.3379095]
[1758280743974,10.4778807,241.44,241.43,54.19592218]
[1758280746348,10.4778807,241.44,241.43,40.60032817]
[1758280746563,10.4778807,241.44,241.43,38.68143251]
[1758280747862,14.61969647,241.44,241.43,38.68143251]
[1758280748161,10.4778807,241.44,241.43,38.68143251]
[1758280750160,14.61969647,241.44,241.43,38.68143251]
[1758280752558,17.96647357,241.44,241.43,38.68143251]
[1758280753668,16.7362965,241.44,241.43,38.68143251]
[1758280754255,12.59448073,241.44,241.43,38.68143251]
[1758280754977,11.90448073,241.44,241.43,38.68143251]
[1758280755556,11.90448073,241.44,241.43,39.91160958]
[1758280756171,11.90448073,241.44,241.43,38.68143251]
[1758280759879,11.90448073,241.44,241.43,44.7735969]
[1758280760584,11.90448073,241.44,241.43,44.0535969]
[1758280761290,12.59448073,241.44,241.43,38.68143251]
[1758280761472,11.90448073,241.44,241.43,39.91160958]
[1758280764686,11.90448073,241.44,241.43,44.0535969]
[1758280765078,11.90448073,241.44,241.43,39.91160958]
[1758280765393,11.90448073,241.44,241.43,44.0535969]
[1758280766799,11.90448073,241.44,241.43,39.91160958]
[1758280772587,9.7878807,241.44,241.43,39.91160958]
[1758280773282,9.2878807,241.44,241.43,39.91160958]
[1758280773486,9.2878807,241.44,241.43,44.0535969]
[1758280773991,9.2878807,241.44,241.43,38.68143251]
[1758280773992,9.9978807,241.44,241.43,38.68143251]
[1758280774175,9.9978807,241.44,241.43,37.96143251]
[1758280774372,11.37021934,241.44,241.43,37.96143251]
[1758280774568,28.40676326,241.44,241.43,37.96143251]
[1758280774794,40.06130574,241.44,241.43,1e-08]
[1758280775296,40.06130574,241.44,241.41,1e-08]
[1758280775297,26.0,241.42,241.41,1e-08]
[1758280775504,36.80238091,241.42,241.41,1e-08]
[1758280775745,26.0,241.38,241.33,2.22251106]
[1758280775882,10.51805777,241.34,241.33,2.22251106]
[1758280776205,10.51805777,241.34,241.33,0.05902134]
[1758280776379,15.11476585,241.34,241.33,0.05902134]
[1758280776973,15.82476585,241.34,241.33,0.05902134]
[1758280777401,19.96829779,241.34,241.33,0.05902134]
[1758280777899,19.96829779,241.34,241.23,0.14216157]
[1758280777900,26.0,241.31,241.23,0.14216157]
[1758280778099,1.23017707,241.24,241.23,0.28432314]
[1758280778514,1.23017707,241.24,241.21,0.24216157]
[1758280778515,9.2878807,241.22,241.21,0.1]
[1758280778810,9.2878807,241.19,241.17,1.76461182]
[1758280778985,1.23017707,241.18,241.17,1.76461182]
[1758280779886,2.21847246,241.21,241.19,0.14216157]
[1758280780088,2.21847246,241.21,241.2,14.56991715]
[1758280780286,9.2878807,241.2,241.18,13.59559401]
[1758280780490,9.2878807,241.2,241.19,0.28432314]
[1758280780902,1.21847246,241.21,241.19,0.97432314]
[1758280781109,1.21847246,241.21,241.2,13.59559401]
[1758280781420,1.21847246,241.21,241.2,0.69]
[1758280783506,1.21847246,241.21,241.2,14.56991715]
[1758280785188,1.21847246,241.21,241.17,1.76461182]
[1758280785413,1.21847246,241.21,241.2,0.69]
[1758280785726,9.2878807,241.19,241.18,13.87991715]
[1758280785894,9.2878807,241.19,241.18,14.56991715]
[1758280788405,9.2878807,241.19,241.18,13.87991715]
[1758280788606,9.2878807,241.19,241.18,13.59559401]
[1758280791795,11.22805777,241.19,241.17,1.76461182]
[1758280792699,15.374196,241.19,241.17,1.76461182]
[1758280792896,0.71,241.18,241.17,1.76461182]
[1758280793098,2.34781069,241.19,241.18,13.59559401]
[1758280793300,2.34781069,241.19,241.18,14.28559401]
[1758280793493,2.34781069,241.19,241.18,13.59559401]
[1758280794103,2.34781069,241.19,241.18,14.71207872]
[1758280795319,2.34781069,241.19,241.18,15.94225579]
[1758280796126,9.9778807,241.29,241.21,26.0]
[1758280796312,9.2878807,241.33,241.28,1.23017707]
[1758280796514,9.9778807,241.33,241.28,1.23017707]
[1758280796722,9.2878807,241.3,241.28,1.23017707]
[1758280797226,9.2878807,241.3,241.27,13.87991715]
[1758280797712,9.2878807,241.3,241.28,1.23017707]
[1758280798316,9.2878807,241.3,241.29,0.28432314]
[1758280798519,10.0078807,241.3,241.29,0.28432314]
[1758280798924,9.2878807,241.3,241.29,13.87991715]
[1758280800421,10.0078807,241.3,241.25,1.23017707]
[1758280800742,9.2878807,241.3,241.26,13.59559401]
[1758280800904,9.2878807,241.3,241.25,1.23017707]
[1758280800905,0.72,241.29,241.25,13.59559401]
[1758280801111,0.72,241.29,241.26,0.14216157]
[1758280801313,0.72,241.29,241.26,0.28432314]
[1758280801529,1.23017707,241.34,241.29,0.28432314]
[1758280801530,10.0078807,241.34,241.29,0.28432314]
[1758280801723,10.0078807,241.33,241.3,13.59559401]
[1758280801917,9.2878807,241.31,241.3,13.59559401]
[1758280802126,10.0078807,241.31,241.27,14.82577108]
[1758280802329,9.2878807,241.29,241.27,13.59559401]
[1758280802713,4.14417416,241.31,241.27,13.59559401]
[1758280802714,0.72,241.28,241.27,13.59559401]
[1758280803223,10.0078807,241.28,241.27,13.59559401]
[1758280803535,10.0078807,241.28,241.26,13.59559401]
[1758280803933,9.2878807,241.28,241.25,0.28432314]
[1758280804133,0.72,241.27,241.24,13.59559401]
[1758280804325,0.72,241.27,241.22,1.37233864]
[1758280804326,10.0078807,241.26,241.22,13.59559401]
[1758280804630,9.2878807,241.23,241.22,17.74118724]
[1758280804838,9.2878807,241.27,241.24,0.28432314]
[1758280805039,9.2878807,241.28,241.26,0.28432314]
[1758280805750,10.0078807,241.28,241.26,0.28432314]
[1758280805933,9.2878807,241.28,241.26,0.28432314]
[1758280806717,10.0078807,241.28,241.27,13.59559401]
[1758280807241,10.0078807,241.28,241.25,13.87991715]
[1758280807540,9.2878807,241.26,241.25,13.87991715]
[1758280807842,9.2878807,241.26,241.25,18.02499487]
[1758280808218,9.2878807,241.18,241.16,22.749359]
[1758280808434,10.0078807,241.18,241.16,22.749359]
[1758280808715,9.2878807,241.18,241.17,15.36020583]
[1758280809240,9.2878807,241.23,241.18,13.59559401]
[1758280809424,9.2878807,241.23,241.21,0.28432314]
[1758280809626,9.2878807,241.23,241.22,2.20914342]
[1758280809828,10.0078807,241.27,241.23,13.59559401]
[1758280810155,9.2878807,241.25,241.22,2.20914342]
[1758280810333,9.2878807,241.25,241.23,13.59559401]
[1758280811052,10.0078807,241.25,241.23,13.59559401]
[1758280811231,0.72,241.24,241.23,13.59559401]
[1758280811848,0.72,241.24,241.22,2.20914342]
[1758280811849,9.2878807,241.23,241.22,0.28432314]
[1758280812015,10.0078807,241.23,241.21,13.59559401]
[1758280812224,0.72,241.22,241.21,13.59559401]
[1758280812622,9.2878807,241.23,241.22,0.28432314]
[1758280813450,9.2878807,241.26,241.22,13.87991715]
[1758280813618,9.2878807,241.26,241.25,15.52041429]
[1758280814229,12.63220024,241.28,241.26,13.59559401]
[1758280814434,12.63220024,241.28,241.27,2.20914342]
[1758280814643,12.63220024,241.28,241.27,19.94947154]
[1758280815149,13.35220024,241.28,241.26,13.59559401]
[1758280815319,0.72,241.27,241.23,13.87991715]
[1758280815518,0.72,241.27,241.25,0.28432314]
[1758280815825,12.63220024,241.28,241.24,1.92482028]
[1758280815826,12.63220024,241.28,241.27,13.87991715]
[1758280816839,13.35220024,241.28,241.27,13.59559401]
[1758280817031,12.63220024,241.28,241.27,13.59559401]
[1758280817332,13.35220024,241.28,241.27,13.59559401]
[1758280817840,12.63220024,241.28,241.27,13.87991715]
[1758280818923,13.35220024,241.28,241.27,13.87991715]
[1758280819227,13.35220024,241.28,241.25,0.28432314]
[1758280819428,0.72,241.27,241.25,0.28432314]
[1758280819638,0.72,241.26,241.24,15.52041429]
[1758280820444,0.72,241.25,241.21,4.14572283]
[1758280820645,0.72,241.24,241.22,15.52041429]
[1758280820862,9.2878807,241.23,241.2,6.0707409]
[1758280821040,9.2878807,241.23,241.21,13.59559401]
[1758280821355,0.72,241.22,241.2,1.92482028]
[1758280821532,0.72,241.21,241.2,15.52041429]
[1758280822147,9.2878807,241.23,241.2,15.52041429]
[1758280822355,9.2878807,241.23,241.21,13.59559401]
[1758280822524,9.2878807,241.23,241.22,15.80473743]
[1758280822942,9.2878807,241.23,241.22,19.95033066]
[1758280825153,9.2878807,241.23,241.22,18.02551038]
[1758280825325,9.2878807,241.23,241.22,19.95033066]
[1758280825529,9.2878807,241.25,241.22,30.31431374]
[1758280825827,9.2878807,241.27,241.26,0.28432314]
[1758280826031,12.63220024,241.28,241.26,2.20914342]
[1758280826347,12.63220024,241.28,241.26,2.91914342]
[1758280826844,21.92008094,241.28,241.26,2.20914342]
[1758280827267,21.92008094,241.28,241.27,18.02465126]
[1758280827431,21.92008094,241.28,241.27,19.94947154]
[1758280828426,12.63220024,241.28,241.27,19.94947154]
[1758280828626,21.92008094,241.28,241.27,19.94947154]
[1758280829255,21.92008094,241.28,241.27,15.80473743]
[1758280829549,22.60008094,241.28,241.27,15.52041429]
[1758280829929,22.60008094,241.28,241.27,13.59559401]
[1758280830138,9.9678807,241.28,241.27,13.59559401]
[1758280830352,9.2878807,241.26,241.23,13.59559401]
[1758280830854,9.2878807,241.26,241.25,13.59559401]
[1758280831660,9.9678807,241.26,241.22,13.87991715]
[1758280831842,9.2878807,241.23,241.22,15.80473743]
[1758280832168,9.2878807,241.23,241.22,15.52041429]
[1758280832345,9.2878807,241.26,241.23,13.87991715]
[1758280832529,9.2878807,241.26,241.25,1.92482028]
[1758280832861,9.2878807,241.35,241.3,13.59559401]
[1758280833036,9.2878807,241.35,241.29,26.0]
[1758280833037,9.2878807,241.35,241.34,15.52041429]
[1758280833635,9.2878807,241.37,241.35,13.59559401]
[1758280833829,9.3878807,241.39,241.37,0.28432314]
[1758280834044,0.1,241.39,241.38,15.80473743]
[1758280834653,0.1,241.39,241.38,16.51473743]
[1758280834860,0.1,241.39,241.38,16.656899]
[1758280835543,0.1,241.39,241.38,20.7997443]
[1758280835732,0.1,241.39,241.38,22.83798119]
[1758280837767,0.1,241.39,241.38,23.54798119]
[1758280838338,9.2878807,241.45,241.39,14.02207872]
[1758280838539,9.2878807,241.45,241.44,18.26865118]
[1758280838939,9.2878807,241.45,241.44,18.55297432]
[1758280839134,9.2878807,241.46,241.45,0.28432314]
[1758280839342,9.9678807,241.46,241.41,26.0]
[1758280839549,0.68,241.45,241.43,4.42627991]
[1758280839746,0.68,241.45,241.44,13.87991715]
[1758280841557,9.2878807,241.46,241.44,4.4261054]
[1758280841760,9.2878807,241.46,241.44,0.28432314]
[1758280841952,9.2878807,241.43,241.38,13.73775558]
[1758280842264,0.68,241.42,241.39,18.55297432]
[1758280842474,9.2878807,241.41,241.39,0.28432314]
[1758280842645,0.68,241.4,241.38,13.59559401]
[1758280842845,9.2878807,241.39,241.36,13.59559401]
[1758280843048,9.2878807,241.39,241.37,4.67305717]
[1758280843240,9.2878807,241.39,241.38,13.87991715]
[1758280843865,9.2878807,241.39,241.38,18.02276245]
[1758280846363,9.2878807,241.39,241.38,13.87991715]
[1758280847369,9.2878807,241.39,241.38,18.02276245]
[1758280847877,9.2878807,241.44,241.39,0.14216157]
[1758280848169,9.2878807,241.47,241.44,13.59559401]
[1758280848369,9.2878807,241.46,241.45,0.28432314]
[1758280848559,9.2878807,241.46,241.44,0.28432314]
[1758280849082,9.2878807,241.46,241.44,0.99432314]
[1758280849446,0.1,241.49,241.44,0.99432314]
[1758280849673,0.1,241.49,241.48,18.26865118]
[1758280849875,9.2878807,241.46,241.44,0.28432314]
[1758280850172,0.68,241.45,241.43,17.73757166]
[1758280850354,9.2878807,241.43,241.42,13.87991715]
[1758280850553,9.9678807,241.43,241.42,13.87991715]
[1758280850785,9.9678807,241.43,241.42,0.28432314]
[1758280851350,9.9678807,241.43,241.37,4.81521874]
[1758280851586,9.2878807,241.39,241.38,13.59559401]
[1758280851888,9.9678807,241.39,241.37,13.59559401]
[1758280852060,0.68,241.38,241.36,13.59559401]
[1758280852259,9.9678807,241.39,241.36,13.59559401]
[1758280852972,9.2878807,241.39,241.37,0.28432314]
[1758280853764,0.68,241.38,241.37,0.28432314]
[1758280853970,0.68,241.38,241.36,13.59559401]
[1758280854166,9.9678807,241.37,241.31,13.59559401]
[1758280854355,9.9678807,241.37,241.34,0.14216157]
[1758280854553,9.2878807,241.35,241.34,0.14216157]
[1758280854770,9.2878807,241.35,241.34,0.28432314]
[1758280855658,9.9978807,241.35,241.29,2.16221473]
[1758280855854,9.2878807,241.3,241.29,6.30659288]
[1758280856057,9.2878807,241.33,241.31,0.28432314]
[1758280856380,0.71,241.37,241.3,13.59559401]
[1758280856381,9.2878807,241.34,241.33,0.28432314]
[1758280856890,9.2878807,241.36,241.33,0.28432314]
[1758280857066,9.2878807,241.36,241.35,13.87991715]
[1758280857991,9.2878807,241.36,241.35,18.02327741]
[1758280859791,0.71,241.39,241.35,18.02327741]
[1758280859792,9.2878807,241.39,241.35,18.02327741]
[1758280860004,9.2878807,241.41,241.38,0.28432314]
[1758280860166,9.2878807,241.39,241.38,0.28432314]
[1758280860485,9.9978807,241.39,241.38,0.28432314]
[1758280860687,9.9978807,241.39,241.34,0.28432314]
[1758280861264,0.71,241.38,241.34,4.4278258]
[1758280861484,0.71,241.37,241.34,4.4278258]
[1758280862768,9.2878807,241.35,241.34,4.4278258]
[1758280862996,9.2878807,241.35,241.34,18.02341981]
[1758280866395,9.2878807,241.35,241.34,4.4278258]
[1758280866577,9.9978807,241.35,241.32,13.59559401]
[1758280866779,9.9978807,241.35,241.3,4.14409286]
[1758280866780,9.2878807,241.32,241.3,13.59559401]
[1758280867000,9.2878807,241.3,241.29,15.75780874]
[1758280867420,9.9978807,241.3,241.29,15.75780874]
[1758280868215,9.2878807,241.3,241.29,19.9021993]
[1758280868374,9.2878807,241.3,241.29,15.75780874]
[1758280868576,9.9978807,241.3,241.29,15.75780874]
[1758280868990,9.9978807,241.3,241.29,2.16221473]
[1758280869193,9.2878807,241.3,241.29,2.3043763]
[1758280869496,9.2878807,241.3,241.29,6.59092843]
[1758280869811,9.2878807,241.32,241.3,0.28432314]
[1758280869993,9.2878807,241.32,241.31,17.73964108]
[1758280873285,9.9978807,241.32,241.3,13.59559401]
[1758280873680,9.2878807,241.32,241.3,17.73979059]
[1758280876177,9.2878807,241.32,241.31,1.23131374]
[1758280876802,9.2878807,241.32,241.31,5.37536081]
[1758280876995,9.9978807,241.32,241.31,5.37536081]
[1758280877808,9.9978807,241.32,241.31,4.14404707]
[1758280878107,9.9978807,241.32,241.3,13.59559401]
[1758280878295,9.2878807,241.3,241.29,2.16221473]
[1758280878482,9.9978807,241.3,241.29,2.16221473]
[1758280879409,15.37341325,241.3,241.29,2.16221473]
[1758280881517,15.51557482,241.3,241.29,2.16221473]
[1758280883505,15.51557482,241.3,241.21,0.1]
[1758280883700,26.0,241.27,241.21,0.1]
[1758280883904,9.2878807,241.23,241.22,2.16462205]
[1758280884416,9.9978807,241.23,241.22,2.16462205]
[1758280885987,14.14330208,241.23,241.22,2.16462205]
[1758280888426,9.2878807,241.17,241.16,22.749359]
[1758280888627,9.9578807,241.17,241.16,22.749359]
[1758280889792,14.1043334,241.17,241.16,22.749359]
[1758280890332,14.1043334,241.17,241.16,1.98147482]
[1758280890506,15.33564714,241.17,241.16,1e-08]
[1758280891200,15.47780871,241.17,241.16,1e-08]
[1758280892290,14.24649497,241.17,241.16,1e-08]
[1758280892496,15.47780871,241.17,241.16,1e-08]
[1758280893114,14.1043334,241.17,241.16,1e-08]
[1758280893320,9.2878807,241.17,241.16,1e-08]
[1758280894198,13.4343334,241.17,241.16,1e-08]
[1758280894406,9.2878807,241.17,241.16,1e-08]
[1758280894797,9.2878807,241.17,241.16,0.67000001]
[1758280895198,9.2878807,241.17,241.16,1.23131375]
[1758280895814,9.2878807,241.17,241.16,3.11872879]
[1758280896316,9.2878807,241.17,241.16,1e-08]
[1758280902623,13.4343334,241.17,241.16,1e-08]
[1758280903001,9.2878807,241.17,241.16,1e-08]
[1758280903416,13.4343334,241.17,241.16,1e-08]
[1758280905526,9.2878807,241.17,241.16,1e-08]
[1758280905918,9.2878807,241.17,241.16,0.67000001]
[1758280906113,9.2878807,241.17,241.16,3.78872879]
[1758280906701,9.2878807,241.17,241.16,3.11872879]
[1758280906902,9.2878807,241.17,241.16,1e-08]
[1758280907715,9.2878807,241.17,241.16,7.93535343]
[1758280908034,9.2878807,241.21,241.18,0.28432314]
[1758280908222,9.2878807,241.21,241.19,0.67]
[1758280908412,9.2878807,241.21,241.2,3.78872878]
[1758280908610,9.2878807,241.21,241.17,13.87991715]
[1758280908611,9.2878807,241.19,241.18,0.28432314]
[1758280910314,9.2878807,241.19,241.18,4.43060392]
[1758280910518,9.2878807,241.19,241.18,18.69619793]
[1758280911028,9.2878807,241.19,241.18,21.81492671]
[1758280911622,9.2878807,241.19,241.18,18.02619793]
[1758280911933,9.2878807,241.19,241.18,13.87991715]
[1758280912648,9.2878807,241.17,241.16,1e-08]
[1758280914218,14.1043334,241.17,241.16,1e-08]
[1758280914417,9.9578807,241.17,241.16,1e-08]
[1758280914619,9.2878807,241.17,241.16,1e-08]
[1758280918423,9.9978807,241.17,241.16,1e-08]
[1758280918812,9.2878807,241.17,241.16,1e-08]
[1758280919014,9.2878807,241.17,241.16,13.87991716]
[1758280919919,9.9978807,241.17,241.16,0.28432315]
[1758280920120,9.2878807,241.17,241.16,0.28432315]
[1758280920428,14.1443334,241.17,241.16,1e-08]
[1758280921735,9.9978807,241.17,241.16,1e-08]
[1758280922015,9.2878807,241.17,241.16,1e-08]
[1758280922538,9.9978807,241.17,241.16,1e-08]
[1758280922756,14.1443334,241.17,241.16,1e-08]
[1758280925732,15.37740712,241.17,241.16,1e-08]
[1758280929846,16.07179347,241.17,241.16,1e-08]
[1758280933137,14.1443334,241.17,241.16,1e-08]
[1758280933324,16.07179347,241.17,241.16,1e-08]
[1758280933932,14.1443334,241.17,241.16,1e-08]
[1758280934132,16.07179347,241.17,241.16,1e-08]
[1758280934529,47.17018878,241.17,241.1,1e-08]
[1758280934730,9.2878807,241.06,241.05,100.0]
[1758280935040,9.2878807,241.06,241.05,101.92746007]
[1758280935341,9.2878807,241.06,241.05,122.12181245]
[1758280935526,9.2878807,241.06,241.05,117.97329555]
[1758280935931,9.2878807,241.06,241.05,116.04583548]
[1758280937261,9.2878807,241.06,241.05,116.27583548]
[1758280937457,9.2878807,241.06,241.05,118.20329555]
[1758280938042,9.2878807,241.06,241.05,122.35181245]
[1758280938651,9.9978807,241.06,241.05,44.25809047]
[1758280938841,9.2878807,241.02,241.01,20.1]
[1758280939249,9.2878807,241.02,241.01,20.79]
[1758280939456,9.2878807,241.04,241.01,24.93920542]
[1758280939650,4.14807512,241.08,241.01,35.90737722]
[1758280939651,9.2878807,241.02,241.01,35.90737722]
[1758280939965,9.2878807,241.02,241.0,0.5]
[1758280940548,9.2878807,241.02,241.01,0.69]
[1758280940950,9.2878807,241.02,241.01,14.56991715]
[1758280942060,9.2878807,241.02,241.01,18.71912257]
[1758280942274,9.2878807,241.02,241.01,0.69]
[1758280943878,9.2878807,241.02,241.01,14.56991715]
[1758280944048,9.2878807,241.02,241.01,18.71912257]
[1758280944248,9.2878807,241.04,241.03,0.28432314]
[1758280944677,9.2878807,241.07,241.03,0.28432314]
[1758280944982,9.2878807,241.04,241.03,0.28432314]
[1758280945186,9.2878807,241.08,241.03,0.28432314]
[1758280945481,9.2878807,241.04,241.03,0.99432314]
[1758280945874,9.2878807,241.06,241.05,0.28432314]
[1758280946185,9.2878807,241.04,241.03,0.71]
[1758280946357,9.2878807,241.06,241.03,0.71]
[1758280946559,9.2878807,241.04,241.02,4.43335505]
[1758280946784,9.2878807,241.04,241.03,13.87991715]
[1758280947163,9.2878807,241.04,241.03,14.58991715]
[1758280948462,9.2878807,241.04,241.03,0.28432314]
[1758280948879,9.2878807,241.04,241.03,0.99432314]
[1758280950062,9.2878807,241.01,241.0,0.5]
[1758280951063,9.2878807,241.01,241.0,14.94775558]
[1758280951259,9.2878807,241.01,241.0,15.08991715]
[1758280951695,9.2878807,241.01,241.0,19.23929474]
[1758280952194,9.2878807,241.01,241.0,0.5]
[1758280952597,9.2878807,241.01,241.0,15.08991715]
[1758280953103,9.2878807,241.03,241.01,13.87991715]
[1758280953407,9.2878807,241.03,241.02,14.58991715]
[1758280953600,9.2878807,241.03,241.02,13.87991715]
[1758280953784,9.2878807,241.03,241.02,14.58991715]
[1758280953971,9.2878807,241.03,241.02,18.73895042]
[1758280955585,9.2878807,241.03,241.02,13.87991715]
[1758280955790,9.2878807,241.03,241.02,18.73895042]
[1758280956890,9.2878807,241.05,241.03,13.87991715]
[1758280957100,9.2878807,241.05,241.04,0.71]
[1758280957301,9.2878807,241.05,241.04,14.58991715]
[1758280958307,9.2878807,241.05,241.04,13.87991715]
[1758280958805,9.2878807,241.05,241.04,18.02860616]
[1758280960088,9.2878807,241.05,241.04,18.73860616]
[1758280962498,9.2878807,241.05,241.04,18.88076773]
[1758280963504,9.2878807,241.05,241.04,18.73860616]
[1758280964693,9.2878807,241.06,241.05,13.87991715]
[1758280964897,9.2878807,241.06,241.05,16.51737722]
[1758280965193,9.2878807,241.06,241.05,14.58991715]
[1758280965506,9.2878807,241.06,241.03,13.59559401]
[1758280965899,9.2878807,241.06,241.04,0.28432314]
[1758280967439,9.2878807,241.01,241.0,0.5]
[1758280970524,9.2878807,241.01,241.0,14.37991715]
[1758280970731,9.2878807,241.01,241.0,0.5]
[1758280972229,9.2878807,241.01,241.0,3.42178321]
[1758280972839,9.2878807,241.01,241.0,0.78432314]
[1758280973141,9.2878807,241.01,241.0,0.5]
[1758280975214,9.2878807,241.01,241.0,2.42746007]
[1758280976231,9.2878807,241.01,241.0,16.99737722]
[1758280976843,9.2878807,241.01,241.0,16.30737722]
[1758280977546,9.2878807,241.01,241.0,17.00737722]
[1758280978226,9.2878807,241.01,241.0,14.37991715]
[1758280980952,9.2878807,241.01,241.0,17.00737722]
[1758280981115,9.2878807,241.01,241.0,21.15675481]
[1758280981526,9.2878807,241.01,241.0,14.37991715]
[1758280982419,9.2878807,241.01,241.0,19.22929474]
[1758280983717,9.2878807,241.01,241.0,21.15675481]
[1758280985436,9.2878807,241.01,241.0,14.37991715]
[1758280985735,9.2878807,241.01,241.0,0.5]
[1758280985936,9.9078807,241.01,241.0,0.5]
[1758280986251,14.05708612,241.01,241.0,0.5]
[1758280986751,9.2878807,241.01,241.0,0.5]
[1758280991633,9.2878807,241.01,241.0,2.42746007]
[1758280991827,9.2878807,241.01,241.0,1.7344665]
[1758280993238,9.2878807,241.01,241.0,0.5]
[1758280997953,14.05708612,241.01,241.0,0.5]
[1758281002638,15.29155262,241.01,241.0,0.5]
[1758281003734,14.05708612,241.01,241.0,0.5]
[1758281003945,15.29155262,241.01,241.0,0.5]
[1758281004348,14.67155262,241.01,241.0,0.5]
[1758281005941,13.43708612,241.01,241.0,0.5]
[1758281006145,14.67155262,241.01,241.0,0.5]
[1758281009144,15.29155262,241.01,241.0,0.5]
[1758281009464,14.67155262,241.01,241.0,0.5]
[1758281009967,13.43708612,241.01,241.0,0.5]
[1758281010170,14.67155262,241.01,241.0,0.5]
[1758281013753,15.29155262,241.01,241.0,0.5]
[1758281014464,14.67155262,241.01,241.0,0.5]
[1758281015542,15.29155262,241.01,241.0,0.5]
[1758281015994,14.67155262,241.01,241.0,0.5]
[1758281016356,15.29155262,241.01,241.0,0.5]
[1758281016555,14.67155262,241.01,241.0,0.5]
[1758281017458,13.43708612,241.01,241.0,0.5]
[1758281017867,14.67155262,241.01,241.0,0.5]
[1758281019159,13.43708612,241.01,241.0,0.5]
[1758281019357,14.67155262,241.01,241.0,0.5]
[1758281020378,13.43708612,241.01,241.0,0.5]
[1758281020557,14.67155262,241.01,241.0,0.5]
[1758281022478,13.43708612,241.01,241.0,0.5]
[1758281022659,14.67155262,241.01,241.0,0.5]
[1758281027970,13.43708612,241.01,241.0,0.5]
[1758281028164,14.67155262,241.01,241.0,0.5]
[1758281030862,13.43708612,241.01,241.0,0.5]
[1758281031066,14.67155262,241.01,241.0,0.5]
[1758281031372,14.67155262,241.01,240.99,0.156]
[1758281031584,1.2344665,241.0,240.99,0.156]
[1758281031960,1.8544665,241.0,240.99,0.156]
[1758281032160,1.99662807,241.0,240.99,1e-08]
[1758281032776,7.81851552,241.0,240.99,1e-08]
[1758281032976,11.96789311,241.0,240.99,1e-08]
[1758281033360,12.58789311,241.0,240.99,1e-08]
[1758281035385,11.96789311,241.0,240.99,1e-08]
[1758281037069,10.73342661,241.0,240.99,0.68000001]
[1758281037466,11.96789311,241.0,240.99,0.68000001]
[1758281040202,11.96789311,241.0,240.99,1e-08]
[1758281042093,11.96789311,241.0,240.99,0.68000001]
[1758281043887,10.73342661,241.0,240.99,0.68000001]
[1758281044300,6.58404902,241.0,240.99,0.68000001]
[1758281046108,9.2878807,240.99,240.95,0.14216157]
[1758281046603,9.2878807,240.99,240.98,1.2344665]
[1758281047294,6.58404902,241.0,240.94,2.16710138]
[1758281047490,9.2878807,240.96,240.94,2.16710138]
[1758281048100,9.2878807,240.96,240.95,0.68]
[1758281048614,9.2878807,240.96,240.94,2.16710138]
[1758281048782,9.2878807,240.96,240.94,2.84710138]
[1758281048978,9.2878807,240.96,240.95,0.68]
[1758281049220,13.4379471,240.96,240.94,2.16710138]
[1758281049585,13.4379471,240.96,240.94,2.84710138]
[1758281049986,9.2878807,240.96,240.94,2.84710138]
[1758281050191,9.2878807,240.96,240.95,0.68]
[1758281051200,13.4379471,240.96,240.95,0.68]
[1758281051402,13.4379471,240.96,240.94,2.16710138]
[1758281053420,13.4379471,240.96,240.94,2.84710138]
[1758281055215,13.4379471,240.96,240.94,2.16710138]
[1758281057993,14.1279471,240.96,240.94,2.16710138]
[1758281058209,13.4379471,240.96,240.94,2.16710138]
[1758281058907,14.1279471,240.96,240.94,2.16710138]
[1758281059916,13.4379471,240.96,240.94,2.16710138]
[1758281060214,14.1279471,240.96,240.94,2.16710138]
[1758281061115,0.69,240.95,240.94,2.16710138]
[1758281061415,35.2878807,240.93,240.92,0.06166512]
[1758281061998,39.43846385,240.93,240.92,0.06166512]
[1758281063294,40.12846385,240.93,240.92,0.06166512]
[1758281063490,39.43846385,240.93,240.92,0.06166512]
[1758281064102,41.36886421,240.93,240.92,0.06166512]
[1758281064298,39.43846385,240.93,240.92,0.06166512]
[1758281064500,41.36886421,240.93,240.92,0.06166512]
[1758281065915,42.05886421,240.93,240.92,0.06166512]
[1758281066507,39.43846385,240.93,240.92,0.06166512]
[1758281066708,9.2878807,240.93,240.92,0.78166512]
[1758281067606,9.2878807,240.93,240.92,18.52801456]
[1758281067813,9.2878807,240.93,240.92,18.8123377]
[1758281068010,9.2878807,240.93,240.92,20.74273806]
[1758281068196,9.2878807,240.95,240.93,13.59559401]
[1758281068514,9.2878807,240.95,240.94,16.24599437]